Cogmind - Beta 14 @@@ ROGUE MODE // 2024.08.10 @ 11:48:52 Player: Sgt. SmokeWeed Result: Self-destructed Performance ------------- Evolutions (2) 1000 Regions Visited (7) 1400 Robots Destroyed (35) 175 Value Destroyed (800) 800 Prototype IDs (0) 0 Alien Tech Used (0) 0 Bonus (0) 0 TOTAL SCORE: 3375 Bonus ------- None Cogmind --------- Core Integrity 550/550 Matter 300/300 Energy 265/265 System Corruption 0% Temperature Cool (0) Movement Treading (240) Ox1 Location -8/Materials Parts ------- > --- POWER (1) -------- Improved Ion Engine > --- PROPULSION (2) --- Light Treads > --- UTILITY (4) ------ Large Storage Unit Improved Targeting Computer Hacking Suite > --- WEAPON (4) ------- Gauss Rifle Rocket Launcher > --- INVENTORY (15) --- Ion Engine Light Treads Light Treads Light Treads Heat Sink Mini Grenade Launcher Peak State ------------ > --- POWER ------------ Improved Ion Engine > --- PROPULSION ------- Light Treads > --- UTILITY ---------- Large Storage Unit Improved Targeting Computer Hacking Suite > --- WEAPON ----------- Gauss Rifle Rocket Launcher > --- INVENTORY -------- Ion Engine Light Treads Light Treads Light Treads Heat Sink Mini Grenade Launcher [Rating: 15] Favorites ----------- Power Improved Ion Engine Engine Improved Ion Engine Propulsion Light Treads Treads Light Treads Utility Hacking Suite Device Tractor Beam Storage Large Storage Unit Processor Improved Targeting Computer Hackware Hacking Suite Weapon Light Cannon Energy Gun EM Pulse Gun Ballistic Gun Gauss Rifle Ballistic Cannon Light Cannon Launcher Rocket Launcher Build | -11 -10 -10 -9 -9 -9 -8 -8 ------- Run | Yrd Mat Min Mat Min Exi Min Mat Slots Evolved 4 | . . . 2 . . . 2 Power . | . . . . . . . . Propulsion . | . . . . . . . . Utility 2 | . . . 2 . . . . Weapon 2 | . . . . . . . 2 Parts Attached 18 | 5 5 1 5 1 . 1 . Power 4 | 1 . 1 2 . . . . Engine 4 | 1 . 1 2 . . . . Core . | . . . . . . . . Reactor . | . . . . . . . . Propulsion 3 | 2 . . 1 . . . . Treads 3 | 2 . . 1 . . . . Leg . | . . . . . . . . Wheel . | . . . . . . . . Hover . | . . . . . . . . Flight . | . . . . . . . . Utility 4 | . 2 . 2 . . . . Device 1 | . . . 1 . . . . Storage 1 | . 1 . . . . . . Processor 1 | . . . 1 . . . . Hackware 1 | . 1 . . . . . . Protection . | . . . . . . . . Artifact . | . . . . . . . . Weapon 7 | 2 3 . . 1 . 1 . Energy Gun 1 | 1 . . . . . . . Energy Cannon . | . . . . . . . . Ballistic Gun 2 | 1 . . . . . 1 . Ballistic Cannon 2 | . 2 . . . . . . Launcher 2 | . 1 . . 1 . . . Special Weapon . | . . . . . . . . Impact Weapon . | . . . . . . . . Slashing Weapon . | . . . . . . . . Piercing Weapon . | . . . . . . . . Special Melee Weapon . | . . . . . . . . Unidentified Prototypes . | . . . . . . . . Parts Lost 3 | . . . 2 . . 1 . Power 1 | . . . 1 . . . . Propulsion 1 | . . . . . . 1 . Utility 1 | . . . 1 . . . . Weapon . | . . . . . . . . Highest Loss Streak 2 | . . . 2 . . 1 . To Critical Strikes . | . . . . . . . . Average Slot Usage (%) 82 | . 84 100 87 88 88 77 . Engine 11 | . 14 14 6 11 11 11 . Treads 18 | . 28 28 22 22 22 11 . Storage 9 | . 5 14 11 11 11 11 . Processor 7 | . . . 11 11 11 11 . Hackware 10 | . 7 14 11 11 11 11 . Ballistic Gun 5 | . 10 . . . . 6 . Ballistic Cannon 8 | . 14 14 11 11 11 4 . Launcher 8 | . 1 14 11 11 11 11 . Peak Build Rating 15 | 5 10 10 14 13 13 15 . Average Rating 11 | 4 7 10 12 13 13 13 . On Entrance 9 | . 5 10 10 13 13 13 15 Naked Turns . | . . . . . . . . Heaviest Build 35 | 9 31 29 32 34 34 35 . Greatest Support 40 | 40 40 40 40 40 40 40 . Greatest Overweight (x) 1 | 1 . . . . . 1 . Average Overweight (x) . | . . . . . . . . Largest Inventory Capacity 15 | 5 15 15 15 15 15 15 . Average Capacity 13 | 5 9 15 15 15 15 15 . Most Carried 6 | . 5 6 5 6 6 6 . Average Carried 4 | . 2 5 4 5 6 6 . Final Capacity 15 | 5 15 15 15 15 15 15 15 Final Carried 6 | . 5 6 5 6 6 6 6 Class Distribution -------------------- 69% | Mutant 30% | Scavenger-Mutant Dominant Class ---------------- Mutant | -10/Materials Mutant | -10/Mines Mutant | -9/Materials Mutant | -9/Mines Mutant | -9/Exiles Scavenger-Mutant | -8/Mines Scavenger-Mutant | -8/Materials Resources | -11 -10 -10 -9 -9 -9 -8 -8 ----------- Run | Yrd Mat Min Mat Min Exi Min Mat Matter Collected 928 | 179 288 . 270 . . 191 . Remotely 239 | . . . 239 . . . . Salvage Created 758 | . 310 87 260 1 . 100 . Parts 64 | . 23 13 19 1 . 8 . Haulers Intercepted 2 | . 2 . . . . . . Recyclers Shooed 1 | . . . 1 . . . . Parts Field Recycled . | . . . . . . . . Retrieved Matter . | . . . . . . . . Parts Self-Destructed . | . . . . . . . . Prevented . | . . . . . . . . Kills | -11 -10 -10 -9 -9 -9 -8 -8 ------- Run | Yrd Mat Min Mat Min Exi Min Mat Combat Hostiles Destroyed 21 | . 5 4 6 1 . 5 . Guns 1 | . 1 . . . . . . Cannons 12 | . 4 . 6 . . 2 . AOE 8 | . . 4 . 1 . 3 . Classes Destroyed 11 | . 6 1 2 . . 2 . Worker 1 | . . . . . . 1 . Builder 3 | . 1 1 1 . . . . Tunneler 2 | . . 2 . . . . . Hauler 2 | . 2 . . . . . . Operator 1 | . 1 . . . . . . Watcher 5 | . 2 . 3 . . . . Swarmer 6 | . 2 . . 1 . 3 . Grunt 10 | . 3 4 3 . . . . Duelist 1 | . . . 1 . . . . Sentry 2 | . . . 2 . . . . Hunter 2 | . . . . . . 2 . Best Kill Streak 7 | . 3 7 7 1 . 3 . Combat Bots Only 4 | . 2 4 4 1 . 3 . Max Kills in Single Turn 5 | . 2 5 2 1 . 2 . Gunslinging . | . . . . . . . . Exploded 3 | . . 3 . 1 . 1 . Melee . | . . . . . . . . Uniques/NPCs Destroyed . | . . . . . . . . Combat | -11 -10 -10 -9 -9 -9 -8 -8 -------- Run | Yrd Mat Min Mat Min Exi Min Mat Hostile Shots Fired 80 | . 31 4 24 2 . 19 . Missed 23 | . 8 1 7 . . 7 . Damage Taken 754 | . 234 55 246 43 . 176 . Core 72 | . 19 10 21 15 . 7 . Absorbed by Shields . | . . . . . . . . Core Remaining (%) 92 | 100 . 88 . . . 89 . Volleys Fired 80 | . 29 18 24 2 . 7 . Largest 2 | . 2 2 2 2 . 2 . Hottest 68 | . 60 65 65 68 . 68 . Shots Fired 129 | . 58 21 32 4 . 14 . Gun 34 | . 32 . . . . 2 . Cannon 75 | . 26 18 24 2 . 5 . Launcher 20 | . . 3 8 2 . 7 . Special . | . . . . . . . . Kinetic 106 | . 55 18 24 2 . 7 . Thermal . | . . . . . . . . Explosive 20 | . . 3 8 2 . 7 . Electromagnetic 3 | . 3 . . . . . . Robot Hit Streak 8 | . 5 4 8 2 . 5 . Robot Miss Streak 5 | . 5 1 1 2 . 1 . Penetration Max . | . . . . . . . . Secondary Targets . | . . . . . . . . Shots Hit Robots 66 | . 30 3 22 2 . 9 . Core Hits 46 | . 15 9 14 1 . 7 . Critical Kills . | . . . . . . . . Critical Parts Destroyed . | . . . . . . . . Critical Strikes 4 | . 1 . 3 . . . . Blast 4 | . 1 . 3 . . . . Melee Attacks . | . . . . . . . . Impact . | . . . . . . . . Slashing . | . . . . . . . . Piercing . | . . . . . . . . Sneak Attacks . | . . . . . . . . Combat Hostiles . | . . . . . . . . Follow-up Attacks . | . . . . . . . . Damage Inflicted 1907 | . 494 475 547 54 . 337 . Guns 230 | . 215 . . . . 15 . Cannons 701 | . 264 37 297 16 . 87 . Explosions 936 | . . 433 244 38 . 221 . Melee . | . . . . . . . . Ramming 40 | . 15 5 6 . . 14 . Kinetic 906 | . 454 37 297 16 . 102 . Thermal . | . . . . . . . . Explosive 936 | . . 433 244 38 . 221 . Electromagnetic 25 | . 25 . . . . . . Impact . | . . . . . . . . Slashing . | . . . . . . . . Piercing . | . . . . . . . . Highest Corruption . | . . . . . . . . Average Corruption . | . . . . . . . . Corruption Purged . | . . . . . . . . Corruption Blocked . | . . . . . . . . Overload Shots . | . . . . . . . . Overflow Damage 52 | . . 10 . . . 42 . Projectiles . | . . . . . . . . Explosions 52 | . . 10 . . . 42 . Melee . | . . . . . . . . Knockbacks 8 | . 3 . 3 . . 2 . Impact . | . . . . . . . . Kinetic 8 | . 3 . 3 . . 2 . Secondary . | . . . . . . . . Self-Inflicted Damage 118 | . . 21 24 30 . 43 . Shots 5 | . . 1 1 1 . 2 . Rammed 12 | . 4 2 3 . . 3 . Targets Rammed 12 | . 4 2 3 . . 3 . Kicked . | . . . . . . . . Crushed . | . . . . . . . . Highest Temperature 70 | . 70 21 9 . . . . Average Temperature 22 | . 34 13 4 . . . . Received Heat Transfer 207 | . 96 18 93 . . . . Siege Activations . | . . . . . . . . Robots Corrupted . | . . . . . . . . Combat Hostiles . | . . . . . . . . Parts Fried . | . . . . . . . . Impact Corruptions . | . . . . . . . . Robots Melted . | . . . . . . . . Combat Hostiles . | . . . . . . . . Parts Melted . | . . . . . . . . Heat Transferred . | . . . . . . . . Parts Sabotaged . | . . . . . . . . Parts Stolen . | . . . . . . . . Parts Stripped . | . . . . . . . . Power Chain Reactions . | . . . . . . . . Alert | -11 -10 -10 -9 -9 -9 -8 -8 ------- Run | Yrd Mat Min Mat Min Exi Min Mat Peak Influence 258 | . 105 122 258 115 . 91 . Initial 47 | . . . 47 37 . . . Average 44 | . 34 22 186 59 . 19 . Maximum Alert Level 1 | . . . 1 . . . . Low Security (%) 93 | 100 100 100 43 100 . 100 . Level 1 6 | . . . 56 . . . . Level 2 . | . . . . . . . . Level 3 . | . . . . . . . . Level 4 . | . . . . . . . . Level 5 . | . . . . . . . . High Security . | . . . . . . . . Max Security . | . . . . . . . . Squads Dispatched 1 | . . . 1 . . . . Investigation 1 | . . . 1 . . . . Extermination . | . . . . . . . . Reinforcement . | . . . . . . . . Assault . | . . . . . . . . Garrison . | . . . . . . . . Intercept . | . . . . . . . . Searches Triggered . | . . . . . . . . Construction Impeded . | . . . . . . . . Haulers Reinforced . | . . . . . . . . Active Scanning Responses . | . . . . . . . . Cargo Convoy Interrupts . | . . . . . . . . Stealth | -11 -10 -10 -9 -9 -9 -8 -8 --------- Run | Yrd Mat Min Mat Min Exi Min Mat Distress Signals 2 | . 1 . 1 . . . . Communications Jammed . | . . . . . . . . Distress Signals . | . . . . . . . . Times Spotted 30 | . 10 4 8 3 . 5 . Peak Tracking Total 6 | . 3 4 6 3 . 2 . Tactical Retreats 1 | . . . . 1 . . . Traps | -11 -10 -10 -9 -9 -9 -8 -8 ------- Run | Yrd Mat Min Mat Min Exi Min Mat Traps Triggered 1 | . . . 1 . . . . Indirectly . | . . . . . . . . Trap Hack Attempts . | . . . . . . . . Triggered . | . . . . . . . . Disarmed . | . . . . . . . . Reprogrammed . | . . . . . . . . Reused . | . . . . . . . . Traps Extracted . | . . . . . . . . Installed . | . . . . . . . . Triggered . | . . . . . . . . Machines | -11 -10 -10 -9 -9 -9 -8 -8 ---------- Run | Yrd Mat Min Mat Min Exi Min Mat Machines Disabled 1 | . . . . . . 1 . Max in Single Turn 1 | . . . . . . 1 . Machines Repaired . | . . . . . . . . Machines Dismantled . | . . . . . . . . Machines Sabotaged . | . . . . . . . . Overloaded Fab Kills . | . . . . . . . . Hacking | -11 -10 -10 -9 -9 -9 -8 -8 --------- Run | Yrd Mat Min Mat Min Exi Min Mat Machines Accessed 5 | . 2 . 2 . . 1 . Terminals 4 | . 2 . 1 . . 1 . Fabricators . | . . . . . . . . Repair Stations . | . . . . . . . . Recycling Units 1 | . . . 1 . . . . Scanalyzers . | . . . . . . . . Garrison Access . | . . . . . . . . Total Hacks 9 | . 3 . 3 . . 3 . Successful 3 | . 1 . 2 . . . . Failed 6 | . 2 . 1 . . 3 . Catastrophic 1 | . 1 . . . . . . Database Lockouts . | . . . . . . . . Manual 7 | . 3 . 1 . . 3 . Terminals 7 | . 3 . 1 . . 3 . Fabricators . | . . . . . . . . Repair Stations . | . . . . . . . . Recycling Units 2 | . . . 2 . . . . Scanalyzers . | . . . . . . . . Garrison Access . | . . . . . . . . Terminal Hacks 2 | . 1 . 1 . . . . Branch Access Points 2 | . 1 . 1 . . . . Fabricator Hacks . | . . . . . . . . Repair Station Hacks . | . . . . . . . . Recycling Unit Hacks 1 | . . . 1 . . . . Retrieve Components 1 | . . . 1 . . . . Scanalyzer . | . . . . . . . . Garrison Access Hacks . | . . . . . . . . Unauthorized Hacks . | . . . . . . . . Terminals . | . . . . . . . . Fabricators . | . . . . . . . . Repair Stations . | . . . . . . . . Recycling Units . | . . . . . . . . Scanalyzers . | . . . . . . . . Garrison Access . | . . . . . . . . Data Cores Recovered 1 | . 1 . . . . . . Used . | . . . . . . . . Hacking Detections 4 | . 2 . 1 . . 1 . Full Trace Events 1 | . . . . . . 1 . Feedback Events . | . . . . . . . . Feedback Blocked . | . . . . . . . . Robot Schematics Acquired . | . . . . . . . . Robots Built . | . . . . . . . . Authchips . | . . . . . . . . Time . | . . . . . . . . Total Robot Build Rating . | . . . . . . . . Part Schematics Acquired . | . . . . . . . . Parts Built . | . . . . . . . . Authchips . | . . . . . . . . Time . | . . . . . . . . Total Part Build Rating . | . . . . . . . . Parts Repaired . | . . . . . . . . Time . | . . . . . . . . Parts Recycled . | . . . . . . . . Recycled Matter . | . . . . . . . . Retrieved Matter . | . . . . . . . . Retrieved Components 10 | . . . 10 . . . . Parts Scanalyzed . | . . . . . . . . Part Schematics Acquired . | . . . . . . . . Parts Damaged . | . . . . . . . . Bothacking | -11 -10 -10 -9 -9 -9 -8 -8 ------------ Run | Yrd Mat Min Mat Min Exi Min Mat Used RIF Installer . | . . . . . . . . Robots Hacked . | . . . . . . . . Non-combat . | . . . . . . . . Combat . | . . . . . . . . Robot Hacks Applied . | . . . . . . . . Relay Couplers Released . | . . . . . . . . Fabnet Peak Effective % . | . . . . . . . . Robots Rewired . | . . . . . . . . Allies Hacked . | . . . . . . . . Hacks Repelled . | . . . . . . . . Allies | -11 -10 -10 -9 -9 -9 -8 -8 -------- Run | Yrd Mat Min Mat Min Exi Min Mat Total Allies 1 | . . 1 . . . . . Largest Group 1 | . . 1 1 . . . . Highest-Rated Group 31 | . . 31 31 . . . . Highest-Rated Ally 31 | . . 31 31 . . . . Total Orders . | . . . . . . . . Ally Attacks 7 | . . 3 4 . . . . Total Damage 104 | . . 21 83 . . . . Kills . | . . . . . . . . Allies Corrupted . | . . . . . . . . Allies Melted . | . . . . . . . . Intel | -11 -10 -10 -9 -9 -9 -8 -8 ------- Run | Yrd Mat Min Mat Min Exi Min Mat Robot Analysis Total . | . . . . . . . . Derelict Logs Recovered . | . . . . . . . . Drone Launches . | . . . . . . . . Drone Recoveries . | . . . . . . . . Exploration | -11 -10 -10 -9 -9 -9 -8 -8 ------------- Run | Yrd Mat Min Mat Min Exi Min Mat Turns Passed 4004 | 73 951 147 447 99 319 1968 . Spaces Moved 1708 | 46 523 61 235 58 200 585 . Core 8 | 8 . . . . . . . Treads 1700 | 38 523 61 235 58 200 585 . Legs . | . . . . . . . . Wheels . | . . . . . . . . Hover . | . . . . . . . . Flight . | . . . . . . . . Fastest Speed 50 | 50 160 160 160 160 160 160 . Average Speed 186 | 144 160 160 160 160 160 237 . Slowest Speed 240 | 160 160 160 160 160 160 240 . Overloaded Moves . | . . . . . . . . Propulsion Burnouts . | . . . . . . . . Robots Hopped . | . . . . . . . . Cave-ins Triggered . | . . . . . . . . Exploration Rate (%) 34 | 3 49 17 23 24 60 102 1 Regions Visited 7 Branch Regions 4 Pre-discovered Areas . | . . . . . . . . Known Exits Taken 2 | . 1 . 1 . . . . Unknown Exits Taken 5 | 1 . 1 . 1 1 1 . Scrap Searched 1 | . . . . . . 1 . Spaces Dug . | . . . . . . . . Terrain Destroyed 205 | . . 35 80 30 . 60 . Melee . | . . . . . . . . Projectile . | . . . . . . . . AOE 205 | . . 35 80 30 . 60 . Terrain Rammed . | . . . . . . . . Walls Destroyed . | . . . . . . . . Machines Disabled . | . . . . . . . . Actions | -11 -10 -10 -9 -9 -9 -8 -8 --------- Run | Yrd Mat Min Mat Min Exi Min Mat Total 2389 | 50 576 88 271 60 199 1145 . Wait 568 | . 8 7 4 . . 549 . Move 1701 | 45 522 60 234 57 199 584 . Hop . | . . . . . . . . Pick Up 5 | . 5 . . . . . . Fast Attach 13 | 5 5 . 2 . . 1 . Attach 2 | . . . 2 . . . . Detach . | . . . . . . . . Swap 3 | . . 1 1 1 . . . Drop 5 | . 3 . 1 . . 1 . Fire 80 | . 29 18 24 2 . 7 . Melee . | . . . . . . . . Ram . | . . . . . . . . Kick . | . . . . . . . . Crush 12 | . 4 2 3 . . 3 . Escape Stasis . | . . . . . . . . Rewire . | . . . . . . . . Trap . | . . . . . . . . Miscellaneous . | . . . . . . . . Route ------- -11/Scrapyard -10/Materials (discovered 4 exits: *Mat x2 / *Min x2) -10/Mines -9/Materials (discovered 2 exits: *Min x2) -9/Mines -9/Exiles (discovered 2 exits: *Min x2) -8/Mines (discovered 2 exits: [*Mat x2]) -8/Materials History --------- Turn | Location | Event 3 | -11/Scrapyard | Discovered new exit (range 16) 74 | -11/Scrapyard | Entered Materials 310 | -10/Materials | Build established: Mutant 313 | -10/Materials | Discovered new exit (range 7) 395 | -10/Materials | Discovered new exit (range 9) 540 | -10/Materials | Discovered new exit (range 13) 548 | -10/Materials | Identified exit to Mines 606 | -10/Materials | Discovered new exit (range 6) 1025 | -10/Materials | Entered Mines 1028 | -10/Mines | Received a Mining Laser from a helpful Derelict 1092 | -10/Mines | Excavation squad dispatched 1092 | -10/Mines | A large section of the Mines collapsed 1147 | -10/Mines | Discovered new exit (range 14) 1172 | -10/Mines | Entered Materials 1172 | -9/Materials | Accompanied by 1 ally 1172 | -9/Materials | Evolved 2 slots: Utility x2 1173 | -9/Materials | Discovered new exit (range 14) 1448 | -9/Materials | Identified exit to Mines 1619 | -9/Materials | Entered Mines 1646 | -9/Mines | Received a Rocket Launcher from a helpful Derelict 1699 | -9/Mines | Met a Derelict bent on vengeance 1710 | -9/Mines | Deemed a non-threat by the Exiles lab entrance 1710 | -9/Mines | Discovered new exit (range 5) 1718 | -9/Mines | Entered Exiles 1718 | -9/Exiles | Found Exiles lab abandoned 1744 | -9/Exiles | Discovered new exit (range 15) 2023 | -9/Exiles | Discovered new exit (range 10) 2037 | -9/Exiles | Entered Mines 2742 | -8/Mines | Discovered new exit (range 11) 3085 | -8/Mines | Build established: Scavenger-Mutant 3207 | -8/Mines | Discovered new exit (range 8) 4005 | -8/Mines | Entered Materials 4005 | -8/Materials | Evolved 2 slots: Weapon x2 4005 | -8/Materials | Self-destructed Last Messages --------------- T-07 Excavator is excavating. U-05 Engineer lays Concrete. T-07 Excavator is excavating. U-05 Engineer lays Concrete. U-05 Engineer builds a Wall. U-05 Engineer lays Concrete. U-05 Engineer builds a Wall. U-05 Engineer lays Concrete. U-05 Engineer builds a Wall. U-05 Engineer lays Concrete. U-05 Engineer builds a Wall. U-05 Engineer lays Concrete. U-05 Engineer builds a Wall. U-05 Engineer lays Concrete. U-05 Engineer builds a Wall. U-05 Engineer lays Concrete. U-05 Engineer builds a Wall. PARAMETERS=WEAPON+2 LOCATION=UNKNOWN GOAL=ESCAPE Map ----- +----------------------------------------------------+ | | | | | | | | | | | | | | | | | | | | | | | | | | | | | | | | | | | | | | | | | ????????????????????????????????????????????? | | ????????????????????????????????????????????? | | ????????????????????????????????????????????? | | ??????????????????###############???????????? | | ??????????????????# ????????? | | ??????????????????# @ ????????? | | ??????????????????# ????????? | | ??????????????????####+##########???????????? | | ????????????????????????????????????????????? | | ????????????????????????????????????????????? | | ????????????????????????????????????????????? | | ????????????????????????????????????????????? | | ????????????????????????????????????????????? | | ????????????????????????????????????????????? | | ????????????????????????????????????????????? | | ????????????????????????????????????????????? | | ????????????????????????????????????????????? | | ????????????????????????????????????????????? | | ????????????????????????????????????????????? | | ????????????????????????????????????????????? | | ????????????????????????????????????????????? | | ????????????????????????????????????????????? | | ????????????????????????????????????????????? | | ????????????????????????????????????????????? | | ????????????????????????????????????????????? | | ????????????????????????????????????????????? | | ????????????????????????????????????????????? | | ????????????????????????????????????????????? | | ????????????????????????????????????????????? | | ????????????????????????????????????????????? | +----------------------------------------------------+ Best States ------------- Heat Dissipation 28 Energy Generation 12 Energy Capacity 265 Matter Stores 300 Matter Capacity 300 Sight Range 16 Terrain Scan Density 10 Evasion (%) 40 Targeting Accuracy 6 Recoil Reduction 2 Offensive Hacking 10 Item Schematics ----------------- None Robot Schematics ------------------ None Fabricated ------------ Nothing Alien Tech Used ----------------- None Achievements -------------- None Challenges ------------ None Game ------ Seed OpticalDefenseArray Manual? 0 Play Time 00:11:32 Cumulative 71.2 hours Start 2024.08.10 @ 11:37:19 End 2024.08.10 @ 11:48:52 Sessions 1 Manual Loads 0 Difficulty Rogue Special Mode None Game No. 172 Rogue 97 Adventurer 75 Explorer 0 Win Type - Total 0 Types 0/0/0/0/0/0/0/0/0 Lore% 40 Gallery% 42 Achievement% 35 Wizard Run 0 Options --------- Layout 0 ASCII 0 Keyboard 0 Movement Arrows Keybinds 0 Fullscreen 1 Font 24/Smallcaps Map View 76x50 Zoom Use 0% Tactical HUD 0 Map Filters NONE Filters NONE Steam 1 RUN: 7a6917e9-cb88-484a-8628-3146997fa6a7